[Event "Titled Tuesday Blitz August 09 Early 2022"]
[White "Bilych, Olexiy"]
[Black "Estrada Nieto, Julian"]
[WhiteFideId "14156504"]
[BlackFideId "5101018"]
[WhiteElo "2157"]
[BlackElo "2252"]
[Result "1-0"]
[Round "04"]
[TimeControl "180+1"]
[Date "2022.08.09"]
[WhiteClock "0:00:18"]
[BlackClock "0:00:03"]

1. d4 {[%clk 0:03:00]}  d5 {[%clk 0:03:00]} 2. c4 {[%clk 0:03:01]}  dxc4 {[%clk 0:03:00]} 3. e4 {[%clk 0:03:00]}  e5 {[%clk 0:03:00]} 4. Nf3 {[%clk 0:02:58]}  exd4 {[%clk 0:03:00]} 5. Bxc4 {[%clk 0:02:59]}  Nc6 {[%clk 0:03:00]} 6. O-O {[%clk 0:02:55]}  Be6 {[%clk 0:03:00]} 7. Nbd2 {[%clk 0:02:55]}  Bc5 {[%clk 0:02:53]} 8. Qb3 {[%clk 0:02:38]}  Bxc4 {[%clk 0:02:48]} 9. Qxc4 {[%clk 0:02:36]}  Bb6 {[%clk 0:02:47]} 10. b4 {[%clk 0:02:36]}  a6 {[%clk 0:02:44]} 11. Bb2 {[%clk 0:02:36]}  Nge7 {[%clk 0:02:40]} 12. Nb3 {[%clk 0:02:33]}  O-O {[%clk 0:02:37]} 13. Rad1 {[%clk 0:02:32]}  Qc8 {[%clk 0:02:26]} 14. Nbxd4 {[%clk 0:02:27]}  Qg4 {[%clk 0:02:15]} 15. Nb3 {[%clk 0:02:16]}  Ng6 {[%clk 0:01:58]} 16. h3 {[%clk 0:02:16]}  Qe6 {[%clk 0:01:47]} 17. Qxe6 {[%clk 0:02:06]}  fxe6 {[%clk 0:01:48]} 18. Rd7 {[%clk 0:01:52]}  Rf7 {[%clk 0:01:39]} 19. Rfd1 {[%clk 0:01:52]}  Raf8 {[%clk 0:01:33]} 20. Nc5 {[%clk 0:01:29]}  Bxc5 {[%clk 0:01:30]} 21. bxc5 {[%clk 0:01:30]}  h6 {[%clk 0:01:24]} 22. g3 {[%clk 0:01:08]}  e5 {[%clk 0:01:14]} 23. Rxf7 {[%clk 0:01:02]}  Rxf7 {[%clk 0:01:14]} 24. Kg2 {[%clk 0:01:01]}  Re7 {[%clk 0:01:09]} 25. Bc3 {[%clk 0:01:00]}  Kf7 {[%clk 0:01:04]} 26. h4 {[%clk 0:00:58]}  b5 {[%clk 0:00:45]} 27. cxb6 {[%clk 0:00:57]}  cxb6 {[%clk 0:00:46]} 28. h5 {[%clk 0:00:57]}  Nf8 {[%clk 0:00:44]} 29. Rd6 {[%clk 0:00:58]}  Nd4 {[%clk 0:00:32]} 30. Rxb6 {[%clk 0:00:28]}  Nxf3 {[%clk 0:00:26]} 31. Kxf3 {[%clk 0:00:29]}  Ne6 {[%clk 0:00:19]} 32. Rxa6 {[%clk 0:00:25]}  Nc5 {[%clk 0:00:18]} 33. Rc6 {[%clk 0:00:24]}  Na4 {[%clk 0:00:16]} 34. Bb4 {[%clk 0:00:21]}  Rb7 {[%clk 0:00:15]} 35. a3 {[%clk 0:00:21]}  Nb6 {[%clk 0:00:12]} 36. Kg4 {[%clk 0:00:20]}  Nd7 {[%clk 0:00:11]} 37. Kf5 {[%clk 0:00:21]}  Nf6 {[%clk 0:00:08]} 38. g4 {[%clk 0:00:20]}  Rd7 {[%clk 0:00:07]} 39. Re6 {[%clk 0:00:19]}  Rd3 {[%clk 0:00:05]} 40. Re7+ {[%clk 0:00:17]}  Kg8 {[%clk 0:00:05]} 41. Kg6 {[%clk 0:00:17]}  Rd8 {[%clk 0:00:04]} 42. Rxg7+ {[%clk 0:00:17]}  Kh8 {[%clk 0:00:04]} 43. Kxf6 {[%clk 0:00:18]}  Rc8 {[%clk 0:00:02]} 44. Rg6 {[%clk 0:00:17]}  Rc6+ {[%clk 0:00:02]} 45. Kxe5 {[%clk 0:00:17]}  Rxg6 {[%clk 0:00:02]} 46. hxg6 {[%clk 0:00:17]}  Kg7 {[%clk 0:00:03]} 47. Kf5 {[%clk 0:00:18]} 1-0


[Site "https://www.chess.com"]

[Event "Titled Tuesday Blitz August 09 Early 2022"]
[White "Bolourchifard, Farzad"]
[Black "Koutlas, Nikolaos"]
[WhiteFideId "12510084"]
[BlackFideId "25827138"]
[WhiteElo "2317"]
[BlackElo "1738"]
[Result "1-0"]
[Round "04"]
[TimeControl "180+1"]
[Date "2022.08.09"]
[WhiteClock "0:00:25"]
[BlackClock "0:00:12"]

1. e4 {[%clk 0:03:00]}  c5 {[%clk 0:02:56]} 2. Nc3 {[%clk 0:03:00]}  Nc6 {[%clk 0:02:56]} 3. g3 {[%clk 0:03:01]}  g6 {[%clk 0:02:56]} 4. Bg2 {[%clk 0:03:02]}  Bg7 {[%clk 0:02:57]} 5. d3 {[%clk 0:03:03]}  e5 {[%clk 0:02:57]} 6. Be3 {[%clk 0:03:03]}  d6 {[%clk 0:02:57]} 7. Qd2 {[%clk 0:03:03]}  Nge7 {[%clk 0:02:58]} 8. Bh6 {[%clk 0:03:03]}  O-O {[%clk 0:02:58]} 9. h4 {[%clk 0:03:03]}  f5 {[%clk 0:02:56]} 10. Bxg7 {[%clk 0:03:03]}  Kxg7 {[%clk 0:02:55]} 11. h5 {[%clk 0:03:04]}  f4 {[%clk 0:02:55]} 12. hxg6 {[%clk 0:02:59]}  hxg6 {[%clk 0:02:51]} 13. Nge2 {[%clk 0:02:50]}  g5 {[%clk 0:02:34]} 14. O-O-O {[%clk 0:02:43]}  Ng6 {[%clk 0:02:33]} 15. gxf4 {[%clk 0:02:41]}  gxf4 {[%clk 0:02:26]} 16. Bf3 {[%clk 0:02:24]}  Rh8 {[%clk 0:02:21]} 17. Bh5 {[%clk 0:02:09]}  Be6 {[%clk 0:02:11]} 18. Bxg6 {[%clk 0:01:31]}  Kxg6 {[%clk 0:01:53]} 19. Nxf4+ {[%clk 0:00:53]}  exf4 {[%clk 0:01:48]} 20. Rhg1+ {[%clk 0:00:52]}  Kf7 {[%clk 0:01:41]} 21. Qxf4+ {[%clk 0:00:52]}  Qf6 {[%clk 0:01:40]} 22. Qxd6 {[%clk 0:00:51]}  Rad8 {[%clk 0:01:22]} 23. Qxc5 {[%clk 0:00:49]}  Qe5 {[%clk 0:01:16]} 24. Qe3 {[%clk 0:00:41]}  Rh3 {[%clk 0:01:15]} 25. Qd2 {[%clk 0:00:30]}  Nd4 {[%clk 0:01:03]} 26. f4 {[%clk 0:00:28]}  Qa5 {[%clk 0:00:55]} 27. f5 {[%clk 0:00:29]}  Bxa2 {[%clk 0:00:23]} 28. Qg2 {[%clk 0:00:29]}  Rdh8 {[%clk 0:00:06]} 29. Qg7+ {[%clk 0:00:26]}  Ke8 {[%clk 0:00:06]} 30. Qxd4 {[%clk 0:00:26]}  Bf7 {[%clk 0:00:06]} 31. Qa4+ {[%clk 0:00:18]}  Qxa4 {[%clk 0:00:05]} 32. Nxa4 {[%clk 0:00:19]}  Rh2 {[%clk 0:00:05]} 33. Rd2 {[%clk 0:00:19]}  R2h6 {[%clk 0:00:03]} 34. b3 {[%clk 0:00:19]}  Ra6 {[%clk 0:00:04]} 35. Kb2 {[%clk 0:00:19]}  b5 {[%clk 0:00:03]} 36. Nc5 {[%clk 0:00:19]}  Rc6 {[%clk 0:00:03]} 37. d4 {[%clk 0:00:20]}  Rh3 {[%clk 0:00:02]} 38. e5 {[%clk 0:00:20]}  Bd5 {[%clk 0:00:01]} 39. f6 {[%clk 0:00:20]}  b4 {[%clk 0:00:01]} 40. Ra1 {[%clk 0:00:18]}  a6 {[%clk 0:00:01]} 41. Rxa6 {[%clk 0:00:18]}  Rxa6 {[%clk 0:00:01]} 42. Nxa6 {[%clk 0:00:19]}  Rc3 {[%clk 0:00:01]} 43. Nxb4 {[%clk 0:00:20]}  Be4 {[%clk 0:00:02]} 44. Kxc3 {[%clk 0:00:20]}  Bf5 {[%clk 0:00:03]} 45. Kc4 {[%clk 0:00:20]}  Be6+ {[%clk 0:00:04]} 46. Kc5 {[%clk 0:00:21]}  Bxb3 {[%clk 0:00:04]} 47. c4 {[%clk 0:00:22]}  Kf7 {[%clk 0:00:05]} 48. Nd3 {[%clk 0:00:21]}  Ke6 {[%clk 0:00:06]} 49. Nf4+ {[%clk 0:00:22]}  Kd7 {[%clk 0:00:06]} 50. d5 {[%clk 0:00:22]}  Ke8 {[%clk 0:00:07]} 51. Kd4 {[%clk 0:00:22]}  Kf7 {[%clk 0:00:08]} 52. c5 {[%clk 0:00:23]}  Ba4 {[%clk 0:00:08]} 53. Rb2 {[%clk 0:00:23]}  Bd7 {[%clk 0:00:09]} 54. Rb7 {[%clk 0:00:24]}  Ke8 {[%clk 0:00:10]} 55. Rxd7 {[%clk 0:00:24]}  Kxd7 {[%clk 0:00:10]} 56. c6+ {[%clk 0:00:25]}  Ke8 {[%clk 0:00:11]} 57. e6 {[%clk 0:00:25]}  Kf8 {[%clk 0:00:12]} 58. Ke5 {[%clk 0:00:25]} 1-0


[Site "https://www.chess.com"]

[Event "Titled Tuesday Blitz August 09 Early 2022"]
[White "Bortnyk, Olexandr"]
[Black "Harsh Suresh"]
[WhiteFideId "14120828"]
[BlackFideId "45018464"]
[WhiteElo "2723"]
[BlackElo "2070"]
[Result "1-0"]
[Round "04"]
[TimeControl "180+1"]
[Date "2022.08.09"]
[WhiteClock "0:00:07"]
[BlackClock "0:00:04"]

1. d4 {[%clk 0:03:00]}  g6 {[%clk 0:02:58]} 2. Nc3 {[%clk 0:03:00]}  Bg7 {[%clk 0:02:57]} 3. e4 {[%clk 0:02:59]}  d6 {[%clk 0:02:57]} 4. Be3 {[%clk 0:02:59]}  a6 {[%clk 0:02:57]} 5. Qd2 {[%clk 0:02:59]}  b5 {[%clk 0:02:56]} 6. a3 {[%clk 0:02:57]}  Bb7 {[%clk 0:02:56]} 7. f4 {[%clk 0:02:57]}  Nf6 {[%clk 0:02:54]} 8. Bd3 {[%clk 0:02:57]}  Nbd7 {[%clk 0:02:52]} 9. Nf3 {[%clk 0:02:57]}  O-O {[%clk 0:02:51]} 10. e5 {[%clk 0:02:54]}  Nd5 {[%clk 0:02:50]} 11. Nxd5 {[%clk 0:02:48]}  Bxd5 {[%clk 0:02:50]} 12. O-O {[%clk 0:02:49]}  Nb6 {[%clk 0:02:49]} 13. Qf2 {[%clk 0:02:46]}  e6 {[%clk 0:02:47]} 14. b3 {[%clk 0:02:44]}  f6 {[%clk 0:02:34]} 15. exf6 {[%clk 0:02:41]}  Qxf6 {[%clk 0:02:34]} 16. Nd2 {[%clk 0:02:25]}  e5 {[%clk 0:02:25]} 17. fxe5 {[%clk 0:02:14]}  Qxf2+ {[%clk 0:02:23]} 18. Bxf2 {[%clk 0:02:11]}  dxe5 {[%clk 0:02:23]} 19. c4 {[%clk 0:02:11]}  bxc4 {[%clk 0:02:17]} 20. bxc4 {[%clk 0:02:12]}  Bb7 {[%clk 0:02:16]} 21. d5 {[%clk 0:02:10]}  e4 {[%clk 0:02:14]} 22. Nxe4 {[%clk 0:02:10]}  Bxa1 {[%clk 0:02:14]} 23. Rxa1 {[%clk 0:02:11]}  a5 {[%clk 0:01:55]} 24. Rb1 {[%clk 0:02:10]}  Ba6 {[%clk 0:01:47]} 25. Bxb6 {[%clk 0:02:07]}  cxb6 {[%clk 0:01:47]} 26. Rxb6 {[%clk 0:02:08]}  Rfb8 {[%clk 0:01:44]} 27. Re6 {[%clk 0:01:58]}  Rb3 {[%clk 0:01:23]} 28. Nc5 {[%clk 0:01:58]}  Rxa3 {[%clk 0:01:21]} 29. Be2 {[%clk 0:01:30]}  Ra1+ {[%clk 0:01:08]} 30. Kf2 {[%clk 0:01:30]}  Rf8+ {[%clk 0:01:08]} 31. Ke3 {[%clk 0:01:30]}  Bc8 {[%clk 0:01:07]} 32. Re7 {[%clk 0:01:28]}  a4 {[%clk 0:01:06]} 33. Kd4 {[%clk 0:00:48]}  a3 {[%clk 0:00:58]} 34. Kc3 {[%clk 0:00:48]}  Bf5 {[%clk 0:00:54]} 35. Ra7 {[%clk 0:00:38]}  Rb8 {[%clk 0:00:26]} 36. g4 {[%clk 0:00:38]}  a2 {[%clk 0:00:22]} 37. gxf5 {[%clk 0:00:12]}  Rc1+ {[%clk 0:00:22]} 38. Kd4 {[%clk 0:00:12]}  a1=Q+ {[%clk 0:00:21]} 39. Rxa1 {[%clk 0:00:13]}  Rxa1 {[%clk 0:00:22]} 40. f6 {[%clk 0:00:14]}  Rb2 {[%clk 0:00:18]} 41. Bg4 {[%clk 0:00:13]}  Kf7 {[%clk 0:00:17]} 42. Ne4 {[%clk 0:00:13]}  Ra6 {[%clk 0:00:14]} 43. d6 {[%clk 0:00:06]}  Rxh2 {[%clk 0:00:09]} 44. d7 {[%clk 0:00:05]}  Ra8 {[%clk 0:00:09]} 45. Ke5 {[%clk 0:00:06]}  Rh4 {[%clk 0:00:07]} 46. Nd6+ {[%clk 0:00:06]}  Kf8 {[%clk 0:00:07]} 47. Nc8 {[%clk 0:00:07]}  Ra5+ {[%clk 0:00:05]} 48. Kd6 {[%clk 0:00:06]}  Ra6+ {[%clk 0:00:04]} 49. Kc7 {[%clk 0:00:05]}  Rxg4 {[%clk 0:00:03]} 50. d8=Q+ {[%clk 0:00:06]}  Kf7 {[%clk 0:00:03]} 51. Qe7+ {[%clk 0:00:07]}  Kg8 {[%clk 0:00:04]} 52. Qg7# {[%clk 0:00:07]} 1-0


[Site "https://www.chess.com"]

[Event "Titled Tuesday Blitz August 09 Early 2022"]
[White "Broca Jimenez, Fernando"]
[Black "Antonio, Jorge Carlos"]
[WhiteFideId "5104742"]
[BlackFideId "113190"]
[WhiteElo "2062"]
[BlackElo "2247"]
[Result "0-1"]
[Round "04"]
[TimeControl "180+1"]
[Date "2022.08.09"]
[WhiteClock "0:00:02"]
[BlackClock "0:00:26"]

1. e4 {[%clk 0:03:00]}  c5 {[%clk 0:02:55]} 2. Nf3 {[%clk 0:02:57]}  e6 {[%clk 0:02:54]} 3. d4 {[%clk 0:02:57]}  cxd4 {[%clk 0:02:54]} 4. Nxd4 {[%clk 0:02:58]}  a6 {[%clk 0:02:52]} 5. g3 {[%clk 0:02:58]}  Nc6 {[%clk 0:02:44]} 6. Bg2 {[%clk 0:02:58]}  Nf6 {[%clk 0:02:40]} 7. O-O {[%clk 0:02:56]}  Qc7 {[%clk 0:02:36]} 8. Bg5 {[%clk 0:02:29]}  Bc5 {[%clk 0:02:29]} 9. Nb3 {[%clk 0:02:28]}  Be7 {[%clk 0:02:25]} 10. Nc3 {[%clk 0:02:26]}  d6 {[%clk 0:02:21]} 11. Qe2 {[%clk 0:02:16]}  h6 {[%clk 0:02:20]} 12. Be3 {[%clk 0:02:11]}  Ne5 {[%clk 0:02:19]} 13. Rad1 {[%clk 0:01:55]}  O-O {[%clk 0:02:14]} 14. h3 {[%clk 0:01:47]}  Nc4 {[%clk 0:02:10]} 15. Bc1 {[%clk 0:01:46]}  Bd7 {[%clk 0:02:06]} 16. Kh2 {[%clk 0:01:36]}  b5 {[%clk 0:02:03]} 17. f4 {[%clk 0:01:30]}  Rfd8 {[%clk 0:01:58]} 18. Nd4 {[%clk 0:01:24]}  b4 {[%clk 0:01:55]} 19. Nb1 {[%clk 0:01:20]}  e5 {[%clk 0:01:52]} 20. Nf5 {[%clk 0:01:19]}  Bxf5 {[%clk 0:01:48]} 21. exf5 {[%clk 0:01:20]}  e4 {[%clk 0:01:46]} 22. Bxe4 {[%clk 0:01:10]}  Nxe4 {[%clk 0:01:42]} 23. Qxe4 {[%clk 0:01:09]}  Bf6 {[%clk 0:01:28]} 24. c3 {[%clk 0:01:04]}  a5 {[%clk 0:01:22]} 25. Qd3 {[%clk 0:00:41]}  d5 {[%clk 0:01:16]} 26. Be3 {[%clk 0:00:36]}  Nxe3 {[%clk 0:01:01]} 27. Qxe3 {[%clk 0:00:36]}  Re8 {[%clk 0:00:59]} 28. Qd3 {[%clk 0:00:31]}  Rad8 {[%clk 0:00:56]} 29. Rfe1 {[%clk 0:00:27]}  bxc3 {[%clk 0:00:56]} 30. Nxc3 {[%clk 0:00:26]}  Bxc3 {[%clk 0:00:53]} 31. Qxc3 {[%clk 0:00:21]}  Qxc3 {[%clk 0:00:52]} 32. bxc3 {[%clk 0:00:22]}  Rxe1 {[%clk 0:00:50]} 33. Rxe1 {[%clk 0:00:22]}  Rc8 {[%clk 0:00:50]} 34. Rc1 {[%clk 0:00:21]}  d4 {[%clk 0:00:50]} 35. c4 {[%clk 0:00:20]}  Kf8 {[%clk 0:00:44]} 36. Kg2 {[%clk 0:00:20]}  Ke7 {[%clk 0:00:45]} 37. Kf2 {[%clk 0:00:21]}  Kd6 {[%clk 0:00:45]} 38. Ke2 {[%clk 0:00:21]}  Kc5 {[%clk 0:00:45]} 39. Kd3 {[%clk 0:00:12]}  Re8 {[%clk 0:00:45]} 40. Rb1 {[%clk 0:00:11]}  Re3+ {[%clk 0:00:43]} 41. Kd2 {[%clk 0:00:11]}  Rxg3 {[%clk 0:00:43]} 42. Rb5+ {[%clk 0:00:09]}  Kxc4 {[%clk 0:00:43]} 43. Rxa5 {[%clk 0:00:10]}  Rxh3 {[%clk 0:00:40]} 44. Ra8 {[%clk 0:00:09]}  Rh2+ {[%clk 0:00:40]} 45. Kc1 {[%clk 0:00:08]}  Kc3 {[%clk 0:00:39]} 46. Rc8+ {[%clk 0:00:08]}  Kd3 {[%clk 0:00:39]} 47. a4 {[%clk 0:00:08]}  Ke4 {[%clk 0:00:36]} 48. Rf8 {[%clk 0:00:04]}  h5 {[%clk 0:00:34]} 49. Rxf7 {[%clk 0:00:05]}  Rg2 {[%clk 0:00:32]} 50. a5 {[%clk 0:00:04]}  d3 {[%clk 0:00:31]} 51. a6 {[%clk 0:00:04]}  Ra2 {[%clk 0:00:27]} 52. Rxg7 {[%clk 0:00:02]}  Kxf5 {[%clk 0:00:26]} 0-1


[Site "https://www.chess.com"]

[Event "Titled Tuesday Blitz August 09 Early 2022"]
[White "Chernomordik, Pavel"]
[Black "Dev, Shah"]
[WhiteFideId "2804530"]
[BlackFideId "35019058"]
[WhiteElo "2217"]
[BlackElo "2048"]
[Result "0-1"]
[Round "04"]
[TimeControl "180+1"]
[Date "2022.08.09"]
[WhiteClock "0:00:37"]
[BlackClock "0:00:42"]

1. e4 {[%clk 0:03:00]}  e5 {[%clk 0:02:56]} 2. Nf3 {[%clk 0:03:00]}  Nc6 {[%clk 0:02:57]} 3. Bb5 {[%clk 0:02:59]}  a6 {[%clk 0:02:56]} 4. Ba4 {[%clk 0:02:59]}  Nf6 {[%clk 0:02:56]} 5. Qe2 {[%clk 0:02:59]}  b5 {[%clk 0:02:56]} 6. Bb3 {[%clk 0:02:58]}  Bc5 {[%clk 0:02:57]} 7. a4 {[%clk 0:02:58]}  Rb8 {[%clk 0:02:57]} 8. axb5 {[%clk 0:02:57]}  axb5 {[%clk 0:02:57]} 9. c3 {[%clk 0:02:56]}  d6 {[%clk 0:02:53]} 10. h3 {[%clk 0:02:53]}  h6 {[%clk 0:02:51]} 11. O-O {[%clk 0:02:51]}  g5 {[%clk 0:02:46]} 12. d4 {[%clk 0:02:45]}  exd4 {[%clk 0:02:40]} 13. e5 {[%clk 0:02:44]}  d3 {[%clk 0:02:26]} 14. Qe1 {[%clk 0:02:34]}  dxe5 {[%clk 0:02:25]} 15. Nxe5 {[%clk 0:02:33]}  Nxe5 {[%clk 0:02:26]} 16. Qxe5+ {[%clk 0:02:32]}  Qe7 {[%clk 0:02:26]} 17. Re1 {[%clk 0:02:22]}  Kf8 {[%clk 0:02:03]} 18. Qxe7+ {[%clk 0:02:11]}  Bxe7 {[%clk 0:02:02]} 19. Be3 {[%clk 0:02:06]}  c5 {[%clk 0:01:57]} 20. Ra7 {[%clk 0:02:03]}  c4 {[%clk 0:01:56]} 21. Bd1 {[%clk 0:01:52]}  Bb7 {[%clk 0:01:39]} 22. Na3 {[%clk 0:01:44]}  Bxa3 {[%clk 0:01:21]} 23. bxa3 {[%clk 0:01:34]}  Kg7 {[%clk 0:01:20]} 24. Bd4 {[%clk 0:01:33]}  Kg6 {[%clk 0:01:10]} 25. Be5 {[%clk 0:01:29]}  Rhe8 {[%clk 0:01:04]} 26. Kf1 {[%clk 0:01:20]}  Ne4 {[%clk 0:00:55]} 27. Rxb7 {[%clk 0:01:16]}  Nd2+ {[%clk 0:00:53]} 28. Kg1 {[%clk 0:01:15]}  Rxb7 {[%clk 0:00:54]} 29. Re3 {[%clk 0:01:05]}  f6 {[%clk 0:00:49]} 30. Bd4 {[%clk 0:00:57]}  Rxe3 {[%clk 0:00:50]} 31. fxe3 {[%clk 0:00:52]}  Ne4 {[%clk 0:00:50]} 32. Bf3 {[%clk 0:00:51]}  f5 {[%clk 0:00:51]} 33. g4 {[%clk 0:00:50]}  Rb8 {[%clk 0:00:49]} 34. gxf5+ {[%clk 0:00:49]}  Kxf5 {[%clk 0:00:49]} 35. Bg4+ {[%clk 0:00:46]}  Kg6 {[%clk 0:00:48]} 36. Kf1 {[%clk 0:00:45]}  Rf8+ {[%clk 0:00:45]} 37. Ke1 {[%clk 0:00:44]}  d2+ {[%clk 0:00:45]} 38. Kd1 {[%clk 0:00:38]}  Rf1+ {[%clk 0:00:44]} 39. Kc2 {[%clk 0:00:37]}  Rc1+ {[%clk 0:00:42]} 0-1


[Site "https://www.chess.com"]

[Event "Titled Tuesday Blitz August 09 Early 2022"]
[White "Costachi, Mihnea"]
[Black "Omariev, Maksim"]
[WhiteFideId "1217518"]
[BlackFideId "4193423"]
[WhiteElo "2437"]
[BlackElo "2523"]
[Result "1-0"]
[Round "04"]
[TimeControl "180+1"]
[Date "2022.08.09"]
[WhiteClock "0:00:58"]
[BlackClock "0:00:01"]

1. e4 {[%clk 0:03:00]}  c5 {[%clk 0:02:54]} 2. Nf3 {[%clk 0:02:45]}  d6 {[%clk 0:02:55]} 3. b3 {[%clk 0:02:45]}  Nf6 {[%clk 0:02:55]} 4. d3 {[%clk 0:02:41]}  Nc6 {[%clk 0:02:52]} 5. Bb2 {[%clk 0:02:39]}  e5 {[%clk 0:02:39]} 6. g3 {[%clk 0:02:39]}  Be7 {[%clk 0:02:30]} 7. Bg2 {[%clk 0:02:39]}  O-O {[%clk 0:02:31]} 8. O-O {[%clk 0:02:39]}  Ne8 {[%clk 0:02:16]} 9. Nc3 {[%clk 0:02:38]}  Nc7 {[%clk 0:02:15]} 10. Nd5 {[%clk 0:02:37]}  Be6 {[%clk 0:02:05]} 11. Nxc7 {[%clk 0:02:33]}  Qxc7 {[%clk 0:02:05]} 12. c3 {[%clk 0:02:34]}  f5 {[%clk 0:01:55]} 13. exf5 {[%clk 0:02:32]}  Bxf5 {[%clk 0:01:52]} 14. d4 {[%clk 0:02:31]}  cxd4 {[%clk 0:01:43]} 15. cxd4 {[%clk 0:02:31]}  e4 {[%clk 0:01:44]} 16. Nd2 {[%clk 0:02:31]}  d5 {[%clk 0:01:43]} 17. a3 {[%clk 0:02:27]}  Qb6 {[%clk 0:01:23]} 18. Re1 {[%clk 0:02:20]}  Bf6 {[%clk 0:01:18]} 19. b4 {[%clk 0:02:14]}  Nxd4 {[%clk 0:01:06]} 20. Nb3 {[%clk 0:02:08]}  Nf3+ {[%clk 0:00:36]} 21. Bxf3 {[%clk 0:02:07]}  Bxb2 {[%clk 0:00:37]} 22. Bg2 {[%clk 0:01:45]}  Bxa1 {[%clk 0:00:24]} 23. Qxa1 {[%clk 0:01:46]}  Rad8 {[%clk 0:00:22]} 24. Nd4 {[%clk 0:01:45]}  Bg4 {[%clk 0:00:21]} 25. h3 {[%clk 0:01:44]}  Bc8 {[%clk 0:00:20]} 26. Qc3 {[%clk 0:01:43]}  Qf6 {[%clk 0:00:20]} 27. Qe3 {[%clk 0:01:43]}  a6 {[%clk 0:00:20]} 28. Rf1 {[%clk 0:01:42]}  Qb6 {[%clk 0:00:19]} 29. Qd2 {[%clk 0:01:40]}  h6 {[%clk 0:00:19]} 30. Kh2 {[%clk 0:01:41]}  Qd6 {[%clk 0:00:19]} 31. Qe3 {[%clk 0:01:38]}  Kh8 {[%clk 0:00:19]} 32. Rd1 {[%clk 0:01:36]}  Qe5 {[%clk 0:00:18]} 33. Ne2 {[%clk 0:01:36]}  Be6 {[%clk 0:00:18]} 34. Nf4 {[%clk 0:01:34]}  Bf7 {[%clk 0:00:17]} 35. Rd4 {[%clk 0:01:32]}  Rd6 {[%clk 0:00:10]} 36. h4 {[%clk 0:01:33]}  Rfd8 {[%clk 0:00:10]} 37. Bh3 {[%clk 0:01:33]}  Kg8 {[%clk 0:00:07]} 38. Bg2 {[%clk 0:01:31]}  Qf6 {[%clk 0:00:07]} 39. Rd2 {[%clk 0:01:30]}  Qe5 {[%clk 0:00:06]} 40. Qc5 {[%clk 0:01:30]}  g5 {[%clk 0:00:04]} 41. hxg5 {[%clk 0:01:29]}  hxg5 {[%clk 0:00:05]} 42. Ne2 {[%clk 0:01:30]}  Rh6+ {[%clk 0:00:04]} 43. Kg1 {[%clk 0:01:29]}  Qa1+ {[%clk 0:00:04]} 44. Bf1 {[%clk 0:01:18]}  Rh1+ {[%clk 0:00:04]} 45. Kxh1 {[%clk 0:01:18]}  Qxf1+ {[%clk 0:00:04]} 46. Kh2 {[%clk 0:01:19]}  Be6 {[%clk 0:00:03]} 47. Ng1 {[%clk 0:01:14]}  Kf7 {[%clk 0:00:03]} 48. Qc7+ {[%clk 0:01:13]}  Rd7 {[%clk 0:00:03]} 49. Qe5 {[%clk 0:01:08]}  Rd8 {[%clk 0:00:02]} 50. Rc2 {[%clk 0:01:06]}  Rd7 {[%clk 0:00:02]} 51. Qxg5 {[%clk 0:01:06]}  Ke8 {[%clk 0:00:01]} 52. Rc8+ {[%clk 0:01:05]}  Kf7 {[%clk 0:00:01]} 53. Rg8 {[%clk 0:00:58]}  Qxf2+ {[%clk 0:00:01]} 54. Kh1 {[%clk 0:00:59]}  Qf1 {[%clk 0:00:01]} 55. Qg7# {[%clk 0:00:58]} 1-0


[Site "https://www.chess.com"]

[Event "Titled Tuesday Blitz August 09 Early 2022"]
[White "Csonka, Balazs"]
[Black "Kazancev, Valerij M"]
[WhiteFideId "742910"]
[BlackFideId "4179609"]
[WhiteElo "2404"]
[BlackElo "2552"]
[Result "0-1"]
[Round "04"]
[TimeControl "180+1"]
[Date "2022.08.09"]
[WhiteClock "0:00:01"]
[BlackClock "0:00:19"]

1. d4 {[%clk 0:03:00]}  Nf6 {[%clk 0:02:59]} 2. c4 {[%clk 0:02:59]}  e6 {[%clk 0:02:59]} 3. Nf3 {[%clk 0:03:00]}  d5 {[%clk 0:02:59]} 4. g3 {[%clk 0:02:59]}  Nbd7 {[%clk 0:02:57]} 5. Bg2 {[%clk 0:02:59]}  dxc4 {[%clk 0:02:56]} 6. O-O {[%clk 0:02:57]}  c6 {[%clk 0:02:53]} 7. Nc3 {[%clk 0:02:54]}  Bb4 {[%clk 0:02:51]} 8. Qc2 {[%clk 0:02:49]}  O-O {[%clk 0:02:50]} 9. Rd1 {[%clk 0:02:23]}  h6 {[%clk 0:02:17]} 10. e4 {[%clk 0:02:11]}  a6 {[%clk 0:02:10]} 11. e5 {[%clk 0:01:27]}  Nd5 {[%clk 0:02:09]} 12. Ne4 {[%clk 0:01:28]}  b5 {[%clk 0:02:09]} 13. b3 {[%clk 0:00:45]}  N7b6 {[%clk 0:01:42]} 14. h4 {[%clk 0:00:34]}  Ra7 {[%clk 0:01:31]} 15. h5 {[%clk 0:00:31]}  Rc7 {[%clk 0:01:03]} 16. g4 {[%clk 0:00:16]}  c5 {[%clk 0:00:59]} 17. a3 {[%clk 0:00:11]}  cxb3 {[%clk 0:00:55]} 18. Qb2 {[%clk 0:00:06]}  c4 {[%clk 0:00:38]} 19. axb4 {[%clk 0:00:06]}  Na4 {[%clk 0:00:38]} 20. Rxa4 {[%clk 0:00:04]}  bxa4 {[%clk 0:00:33]} 21. Qa3 {[%clk 0:00:04]}  c3 {[%clk 0:00:32]} 22. Qxa4 {[%clk 0:00:04]}  b2 {[%clk 0:00:32]} 23. Bxb2 {[%clk 0:00:04]}  cxb2 {[%clk 0:00:32]} 24. Qb3 {[%clk 0:00:02]}  Nf4 {[%clk 0:00:24]} 25. Qxb2 {[%clk 0:00:02]}  Bb7 {[%clk 0:00:25]} 26. Nd6 {[%clk 0:00:01]}  Nxg2 {[%clk 0:00:20]} 27. Kxg2 {[%clk 0:00:02]}  Qh4 {[%clk 0:00:20]} 28. Nxb7 {[%clk 0:00:01]}  Qxg4+ {[%clk 0:00:20]} 29. Kh2 {[%clk 0:00:02]}  Qxf3 {[%clk 0:00:20]} 30. Nc5 {[%clk 0:00:01]}  Qxh5+ {[%clk 0:00:20]} 31. Kg2 {[%clk 0:00:02]}  Qg4+ {[%clk 0:00:20]} 32. Kh2 {[%clk 0:00:02]}  Rd8 {[%clk 0:00:20]} 33. Qc3 {[%clk 0:00:02]}  Rd5 {[%clk 0:00:17]} 34. Qe3 {[%clk 0:00:02]}  Qh4+ {[%clk 0:00:17]} 35. Kg2 {[%clk 0:00:02]}  a5 {[%clk 0:00:18]} 36. bxa5 {[%clk 0:00:02]}  Rcxc5 {[%clk 0:00:18]} 37. dxc5 {[%clk 0:00:02]}  Qg4+ {[%clk 0:00:18]} 38. Qg3 {[%clk 0:00:01]}  Qxd1 {[%clk 0:00:19]} 39. Qxg7+ {[%clk 0:00:01]}  Kxg7 {[%clk 0:00:19]} 0-1


[Site "https://www.chess.com"]